bitfinex-derivatives/quotes_SOLF0:USTF0_20241120
["timestamp","ask_amount","ask_price","bid_price","bid_amount"]
[1732143208058,12.73,235.94,235.86,2.118]
[1732143208253,12.73,235.94,235.85,8.74428162]
[1732143208254,2.1179,235.88,235.85,8.74428162]
[1732143208962,2.1178,235.9,235.86,2.118]
[1732143209157,2.1178,235.9,235.85,6.62618162]
[1732143209360,14.87,235.94,235.87,6.62618162]
[1732143209662,6.7557,236.0,235.89,6.62618162]
[1732143209863,6.62618162,235.95,235.87,6.62618162]
[1732143210363,6.62618162,235.96,235.87,6.62618162]
[1732143210664,2.1175,235.93,235.89,2.1177]
[1732143210958,6.62618162,235.97,235.89,6.62618162]
[1732143211160,6.62618162,235.97,235.9,2.1177]
[1732143211161,2.1174,235.93,235.9,2.1177]
[1732143213662,2.1174,235.93,235.89,2.1177]
[1732143214663,2.1174,235.93,235.87,6.62618162]
[1732143216260,2.1177,235.91,235.87,2.1179]
[1732143217557,6.62618162,235.94,235.87,2.1179]
[1732143217761,2.1177,235.9,235.87,2.1179]
[1732143222169,2.1179,235.88,235.85,2.1181]
[1732143225169,14.87,235.98,235.86,6.62618162]
[1732143225369,6.62618162,235.96,235.86,6.62618162]
[1732143225769,6.62618162,235.96,235.88,2.1178]
[1732143228272,2.1176,235.92,235.88,2.1178]
[1732143228463,6.62618162,235.96,235.88,2.1178]
[1732143229271,2.1176,235.91,235.88,2.1178]
[1732143232072,6.62618162,235.96,235.86,6.62618162]
[1732143232275,2.1178,235.89,235.86,8.74418162]
[1732143234969,2.1178,235.89,235.86,6.62618162]
[1732143235169,2.1178,235.89,235.87,2.1179]
[1732143238776,2.1178,235.89,235.86,2.118]
[1732143239075,2.1178,235.89,235.84,2.14]
[1732143240274,2.1178,235.89,235.86,2.118]
[1732143240669,2.1177,235.9,235.84,2.14]
[1732143242476,2.1177,235.9,235.87,2.1179]
[1732143244074,2.1177,235.9,235.88,2.1179]
[1732143244779,6.62618162,235.95,235.89,2.1178]
[1732143246079,2.1176,235.91,235.89,2.1178]
[1732143246282,2.1176,235.91,235.85,6.62618162]
[1732143246483,2.1176,235.91,235.88,2.1179]
[1732143247178,6.62618162,235.95,235.85,6.62618162]
[1732143247179,2.1175,235.93,235.89,2.1177]
[1732143247385,6.62618162,235.95,235.89,2.1177]
[1732143248384,2.1175,235.92,235.89,2.1177]
[1732143251585,2.1175,235.93,235.89,2.1177]
[1732143252588,6.62618162,235.95,235.89,2.1177]
[1732143252789,2.1175,235.92,235.89,2.1177]
[1732143252987,6.62618162,235.95,235.84,2.14]
[1732143253284,6.62618162,235.95,235.87,2.1179]
[1732143253483,2.14,235.97,235.87,2.1179]
[1732143253688,6.62618162,235.94,235.87,2.1179]
[1732143253889,2.1177,235.9,235.87,2.1179]
[1732143255388,2.1179,235.89,235.84,2.14]
[1732143255989,2.1178,235.9,235.86,2.118]
[1732143256581,4.2336,236.01,235.84,2.14]
[1732143256582,232.5330475,236.03,235.88,6.62618162]
[1732143256780,232.5330475,236.03,235.84,2.14]
[1732143256781,2.6089,236.2,236.0,6.62618162]
[1732143256988,2.6089,236.2,236.15,6.62618162]
[1732143257183,2.6089,236.2,235.93,5.90306527]
[1732143257184,2.6089,236.2,236.16,6.62618162]
[1732143257383,2.6089,236.2,236.14,6.62618162]
[1732143257583,2.6089,236.2,236.14,8.74168162]
[1732143257784,2.6089,236.2,236.15,2.85894607]
[1732143258093,2.6089,236.2,236.16,11.60042769]
[1732143258292,2.14,236.23,236.17,2.85894607]
[1732143258492,2.14,236.23,236.18,2.85894607]
[1732143258693,2.14,236.23,236.19,2.85894607]
[1732143258887,0.5713,236.24,236.2,2.85894607]
[1732143259091,2.14,236.23,236.21,2.85894607]
[1732143259286,2.14,236.23,236.22,1.09943381]
[1732143259895,2.14,236.23,236.19,2.1151]
[1732143260291,2.14,236.23,236.17,6.62618162]
[1732143260486,2.14,236.23,236.2,1.05780416]
[1732143261790,2.14,236.26,236.2,3.17280416]
[1732143261996,3.3904,236.26,236.2,3.17280416]
[1732143262495,6.62618162,236.25,236.2,1.05780416]
[1732143262991,3.3904,236.26,236.2,1.05780416]
[1732143263293,10.01658162,236.26,236.2,1.05780416]
[1732143263686,10.01658162,236.26,236.21,2.1149]
[1732143263885,7.87658162,236.26,236.21,2.1149]
[1732143264085,2.14,236.25,236.21,2.1149]
[1732143264487,2.14,236.24,236.21,2.1149]
[1732143266294,8.76618162,236.24,236.21,2.1149]
[1732143267192,6.62618162,236.24,236.21,2.1149]
[1732143267397,2.14,236.23,236.21,2.1149]
[1732143267597,2.1142,236.29,236.21,2.1149]
[1732143267794,6.62618162,236.25,236.21,2.1149]
[1732143268495,8.76618162,236.25,236.17,6.62618162]
[1732143269293,8.76618162,236.25,236.21,2.1149]
[1732143282907,8.78618162,236.25,236.21,2.1149]
[1732143283104,8.78618162,236.25,236.11,0.625]
[1732143283105,1.2421,236.33,236.19,6.62618162]
[1732143283306,1.2421,236.33,236.22,6.62618162]
[1732143283307,3.356,236.33,236.22,6.62618162]
[1732143283712,6.62618162,236.31,236.22,6.62618162]
[1732143284306,6.62618162,236.31,236.28,2.1143]
[1732143284513,1.2421,236.33,236.24,6.62618162]
[1732143284811,6.62618162,236.32,236.24,6.62618162]
[1732143285216,1.2421,236.33,236.31,2.114]
[1732143285411,6.62618162,236.32,236.31,2.114]
[1732143285807,1.2421,236.33,236.32,2.1139]
[1732143286011,4.6433,236.35,236.32,2.1139]
[1732143286211,6.62618162,236.33,236.32,2.1139]
[1732143287312,6.62618162,236.33,236.25,6.62618162]
[1732143287814,6.62618162,236.33,236.27,2.1143]
[1732143288115,6.62618162,236.33,236.25,6.62618162]
[1732143288815,4.6433,236.35,236.25,6.62618162]
[1732143289007,6.62618162,236.34,236.25,6.62618162]
[1732143289613,6.62618162,236.34,236.24,1.05731106]
[1732143289812,6.62618162,236.34,236.25,6.62618162]
[1732143290914,6.62618162,236.34,236.31,2.1139]
[1732143293316,6.62618162,236.34,236.26,1.05730374]
[1732143293512,6.62618162,236.34,236.25,6.62618162]
[1732143294120,6.62618162,236.34,236.31,2.114]
[1732143294613,6.62618162,236.34,236.32,2.1139]
[1732143296617,6.62618162,236.34,236.31,2.1139]
[1732143298413,8.73998162,236.34,236.31,2.1139]
[1732143299211,6.62618162,236.34,236.32,1.05729609]
[1732143299519,6.62618162,236.34,236.33,1.05729609]
[1732143301621,1.2111,236.37,236.33,1.05729609]
[1732143301815,1.2111,236.37,236.36,2.1136]
[1732143302021,2.1133,236.39,236.36,3.17089609]
[1732143302221,6.62618162,236.41,236.37,3.17079609]
[1732143302222,2.1132,236.4,236.37,3.17079609]
[1732143302419,8.78618162,236.41,236.38,1.05729609]
[1732143302718,2.16,236.41,236.39,1.05729609]
[1732143303019,4.2731,236.41,236.4,1.05729609]
[1732143303222,2.16,236.44,236.4,1.05729609]
[1732143303422,2.16,236.44,236.41,1.05729609]
[1732143303619,2.16,236.44,236.42,1.05729609]
[1732143303822,2.16,236.44,236.43,1.05729609]
[1732143304421,2.16,236.48,236.43,1.05729609]
[1732143304623,2.6144,236.49,236.42,6.62618162]
[1732143304624,2.6144,236.49,236.44,1.05729609]
[1732143304821,4.7744,236.49,236.42,6.62618162]
[1732143305023,2.1128,236.45,236.43,1.05702341]
[1732143305222,2.1128,236.45,236.44,1.05702341]
[1732143305625,2.1128,236.45,236.42,6.62618162]
[1732143309027,2.1127,236.46,236.44,6.62618162]
[1732143309920,4.7744,236.49,236.44,6.62618162]
[1732143310126,4.7744,236.49,236.46,6.62618162]
[1732143310631,1.2241,236.5,236.46,6.62618162]
[1732143311428,2.1124,236.49,236.46,6.62618162]
[1732143311732,1.2241,236.5,236.46,6.62618162]
[1732143311938,1.2241,236.5,236.44,6.62618162]
[1732143311939,2.1126,236.48,236.44,6.62618162]
[1732143312136,1.2241,236.5,236.44,6.62618162]
[1732143312634,2.1125,236.49,236.44,6.62618162]
[1732143312837,1.2241,236.5,236.44,6.62618162]
[1732143313036,1.2241,236.5,236.44,8.73898162]
[1732143313338,2.1125,236.49,236.44,8.73898162]
[1732143313535,1.2241,236.5,236.44,6.62618162]
[1732143313737,3.3364,236.5,236.46,6.62618162]
[1732143315031,3.3364,236.5,236.45,6.62618162]
[1732143315032,1.2241,236.5,236.45,6.62618162]
[1732143315236,2.1124,236.49,236.45,6.62618162]
[1732143315840,2.1121,236.53,236.49,2.1123]
[1732143316240,2.1121,236.53,236.49,8.73848162]
[1732143316537,2.1121,236.53,236.5,2.1123]
[1732143316843,2.1121,236.53,236.44,2.14]
[1732143317042,2.1121,236.53,236.51,6.62618162]
[1732143320444,2.112,236.55,236.51,8.73838162]
[1732143322043,2.112,236.54,236.51,8.73838162]
[1732143322436,2.112,236.54,236.51,6.62618162]
[1732143327841,2.112,236.54,236.5,2.1123]
[1732143328037,2.112,236.54,236.51,6.62618162]
[1732143328646,2.112,236.54,236.51,8.73838162]
[1732143329636,2.112,236.54,236.51,2.1122]
[1732143334745,2.14,236.59,236.49,6.62618162]
[1732143334941,2.1117,236.57,236.53,2.112]
[1732143335339,2.1117,236.57,236.54,6.62618162]
[1732143335945,2.14,236.59,236.54,6.62618162]
[1732143336137,2.1118,236.56,236.54,6.62618162]
[1732143337446,2.14,236.59,236.54,6.62618162]
[1732143337645,2.1118,236.56,236.54,6.62618162]
[1732143340849,13.95256498,236.61,236.55,2.1118]
[1732143341040,13.95256498,236.61,236.56,6.62618162]
[1732143342550,2.1116,236.58,236.56,6.62618162]
[1732143343048,13.95256498,236.61,236.51,2.14]
[1732143343253,13.95256498,236.61,236.56,6.62618162]
[1732143343751,2.1115,236.6,236.56,6.62618162]
[1732143343951,13.95256498,236.61,236.56,6.62618162]
[1732143344841,13.95256498,236.61,236.56,8.73798162]
[1732143345649,2.1116,236.59,236.56,8.73798162]
[1732143346353,2.1119,236.55,236.52,2.1121]
[1732143346654,6.62618162,236.58,236.51,8.76618162]
[1732143346849,1.2303,236.62,236.53,6.62618162]
[1732143347045,2.1117,236.57,236.54,2.112]
[1732143347850,1.2303,236.62,236.53,8.73818162]
[1732143348450,2.1117,236.57,236.53,6.62618162]
[1732143348755,1.2303,236.62,236.53,6.62618162]
[1732143349455,2.1115,236.6,236.53,8.73818162]
[1732143349655,1.2303,236.62,236.53,8.73818162]
[1732143350450,2.1118,236.57,236.53,8.73818162]
[1732143350651,2.1118,236.57,236.54,2.1119]
[1732143351856,2.1118,236.57,236.53,8.73818162]
[1732143354557,2.1118,236.57,236.54,2.1119]
[1732143355857,2.1118,236.57,236.53,8.73818162]
[1732143356362,2.1116,236.59,236.52,2.1121]
[1732143356557,1.2303,236.62,236.52,2.1121]
[1732143357059,1.2303,236.62,236.51,6.62618162]
[1732143357060,2.1118,236.57,236.53,2.112]
[1732143358060,2.1118,236.56,236.53,2.112]
[1732143358357,6.62618162,236.59,236.43,0.84956]
[1732143358557,6.62618162,236.51,236.43,0.84956]
[1732143358861,6.62618162,236.48,236.4,6.62618162]
[1732143359561,2.1128,236.45,236.4,8.73938162]
[1732143360560,2.113,236.43,236.38,2.1134]
[1732143360861,2.113,236.43,236.4,6.62618162]
[1732143366158,2.113,236.43,236.39,2.1132]
[1732143366464,2.113,236.43,236.41,6.62618162]
[1732143367266,2.14,236.45,236.32,2.14]
[1732143367461,2.14,236.45,236.36,2.1135]
[1732143367666,2.14,236.45,236.32,2.14]
[1732143367867,2.1134,236.39,236.37,6.62618162]
[1732143368763,2.1134,236.38,236.37,6.62618162]
[1732143369564,2.1133,236.39,236.37,6.62618162]
[1732143370561,2.12,236.4,236.37,6.62618162]
[1732143371361,2.12,236.4,236.28,2.12]
[1732143371362,2.1138,236.34,236.28,2.1143]
[1732143371561,2.1138,236.34,236.06,80.90150463]
[1732143371562,2.1138,236.34,236.33,6.62618162]
[1732143374063,2.1138,236.34,236.3,2.1141]
[1732143374263,2.1138,236.34,236.32,6.62618162]
[1732143375169,2.1138,236.33,236.3,8.74028162]
[1732143376469,2.1138,236.34,236.3,8.74028162]
[1732143377067,2.1139,236.33,236.3,8.74028162]
[1732143377271,6.62618162,236.38,236.3,8.74028162]
[1732143377465,2.14,236.37,236.3,8.74028162]
[1732143378271,2.1138,236.34,236.3,8.74028162]
[1732143379971,2.1138,236.34,236.32,6.62618162]
[1732143390374,2.1138,236.34,236.31,2.114]
[1732143395286,2.14,236.45,236.33,6.62618162]
[1732143395482,2.14,236.45,236.28,2.14]
[1732143395483,6.62618162,236.45,236.37,6.62618162]
[1732143395686,3.53804,236.46,236.39,6.62618162]
[1732143395888,2.113,236.43,236.39,6.62618162]
[1732143396383,2.113,236.42,236.39,8.73948162]
[1732143396589,2.29454,236.46,236.39,8.73948162]
[1732143397589,2.1129,236.44,236.39,8.73948162]
[1732143398994,6.62618162,236.45,236.39,2.1133]
[1732143399193,2.113,236.43,236.39,2.1133]
[1732143400185,2.1131,236.41,236.37,2.1134]
[1732143401395,2.1131,236.41,236.38,2.1134]
[1732143402887,2.113,236.42,236.38,2.1134]
[1732143404693,2.1132,236.41,236.38,2.1134]
[1732143406690,6.62618162,236.44,236.38,2.1134]
[1732143406895,2.113,236.42,236.38,2.1134]
[1732143407292,2.1131,236.41,236.38,2.1134]
[1732143408491,6.62618162,236.44,236.32,1.3166]
[1732143408691,2.1133,236.39,236.34,6.62618162]
[1732143409191,2.1134,236.38,236.36,2.1135]
[1732143409394,6.62618162,236.42,236.36,2.1135]
[1732143411392,2.1134,236.39,236.36,2.1135]
[1732143415498,2.1132,236.41,236.36,6.62618162]
[1732143415803,2.5022,236.51,236.36,6.62618162]
[1732143416100,2.5022,236.51,236.42,6.62618162]
[1732143416308,6.62618162,236.5,236.42,8.74618162]
[1732143416896,2.1124,236.49,236.45,2.1127]
[1732143418599,6.62618162,236.52,236.42,8.74618162]
[1732143418803,6.62618162,236.52,236.46,2.1127]
[1732143419697,2.1124,236.5,236.46,2.1127]
[1732143420898,2.1122,236.51,236.47,2.1125]
[1732143421297,2.1122,236.51,236.44,6.62618162]
[1732143421700,2.1122,236.51,236.47,2.1126]
[1732143421899,2.1122,236.51,236.44,6.62618162]
[1732143422108,13.95342301,236.57,236.46,6.62618162]
[1732143422109,2.1121,236.52,236.46,6.62618162]
[1732143424309,2.1121,236.52,236.48,2.1124]
[1732143424805,2.1121,236.52,236.49,2.1124]
[1732143430012,2.1121,236.52,236.5,6.62618162]
[1732143430212,12.71,236.66,236.5,6.62618162]
[1732143430419,12.71,236.66,236.47,2.12]
[1732143430420,6.62618162,236.66,236.57,6.62618162]
[1732143430622,6.62618162,236.66,236.58,2.1115]
[1732143430817,6.62618162,236.66,236.57,8.74618162]
[1732143431521,2.1112,236.63,236.59,2.1115]
[1732143431712,6.62618162,236.66,236.59,2.1115]
[1732143431914,2.1113,236.62,236.58,2.1116]
[1732143432715,6.62618162,236.66,236.58,2.1116]
[1732143433615,14.83,236.69,236.58,2.1116]
[1732143433817,2.1112,236.63,236.58,2.1116]
[1732143434218,6.62618162,236.66,236.58,2.1116]
[1732143434614,2.1113,236.62,236.58,2.1116]
[1732143434821,6.62618162,236.64,236.59,2.1115]
[1732143435120,6.62618162,236.65,236.57,8.74618162]
[1732143436222,2.1113,236.62,236.58,2.1116]
[1732143437520,2.1113,236.62,236.57,8.74618162]
[1732143437521,2.1113,236.62,236.59,8.73768162]
[1732143438014,6.62618162,236.6,236.51,2.1121]
[1732143438215,6.62618162,236.55,236.51,2.1121]
[1732143439126,6.62618162,236.57,236.51,2.1121]
[1732143441719,2.1119,236.55,236.51,2.1121]
[1732143443127,6.62618162,236.57,236.49,2.1124]
[1732143443627,2.1122,236.52,236.49,2.1124]
[1732143444027,6.62618162,236.57,236.5,2.1123]
[1732143444231,2.112,236.54,236.5,2.1123]
[1732143444626,2.1121,236.53,236.5,2.1123]
[1732143450433,2.112,236.55,236.5,2.1123]
[1732143450733,6.62618162,236.57,236.5,2.1123]
[1732143451931,2.1119,236.55,236.5,2.1123]
[1732143452331,2.1119,236.55,236.51,2.1122]
[1732143456931,2.1123,236.51,236.47,2.1125]
[1732143457332,2.12,236.57,236.45,6.62618162]
[1732143457533,2.112,236.54,236.47,6.62618162]
[1732143458135,2.112,236.54,236.5,2.1123]
[1732143459732,6.62618162,236.55,236.43,2.12]
[1732143460037,2.1124,236.5,236.46,2.1126]
[1732143464239,2.1124,236.49,236.46,2.1126]
[1732143464736,2.1124,236.49,236.45,8.73888162]
[1732143467839,1.2542,236.52,236.45,6.62618162]
[1732143468538,1.2542,236.52,236.45,8.73888162]
[1732143470242,2.1125,236.48,236.45,8.73888162]
[1732143470440,1.2542,236.52,236.45,8.73888162]
[1732143470937,2.1125,236.48,236.45,8.73888162]
[1732143472242,2.1123,236.5,236.46,2.1127]
[1732143472438,1.2542,236.52,236.46,2.1127]
[1732143472835,2.1125,236.49,236.45,8.73888162]
[1732143473742,2.1125,236.49,236.45,6.62618162]
[1732143474042,2.1123,236.5,236.45,6.62618162]
[1732143474244,1.2542,236.52,236.45,6.62618162]
[1732143474644,2.1125,236.49,236.45,8.73898162]
[1732143475046,2.1125,236.49,236.45,6.62618162]
[1732143475243,2.1125,236.49,236.46,2.1127]
[1732143475545,1.2542,236.52,236.45,6.62618162]
[1732143475546,2.1125,236.48,236.45,6.62618162]
[1732143476142,2.1125,236.48,236.45,8.73888162]
[1732143476343,6.62618162,236.49,236.4,6.62618162]
[1732143476647,6.62618162,236.47,236.4,6.62618162]
[1732143476848,6.62618162,236.47,236.39,2.1132]
[1732143476849,2.113,236.42,236.39,2.1132]
[1732143477650,2.1132,236.41,236.38,8.73958162]
[1732143478443,2.1132,236.41,236.39,2.1133]
[1732143479451,2.113,236.43,236.39,2.1133]
[1732143479752,6.62618162,236.47,236.39,2.1133]
[1732143480947,2.1128,236.45,236.39,2.1133]
[1732143481146,6.62618162,236.45,236.39,2.1133]
[1732143482349,2.1129,236.44,236.39,2.1133]
[1732143482551,6.62618162,236.45,236.35,2.12]
[1732143482752,6.62618162,236.45,236.4,2.1132]
[1732143483550,6.62618162,236.45,236.37,6.62618162]
[1732143483851,16.082,236.51,236.35,8.74618162]
[1732143483852,6.62618162,236.43,236.35,8.74618162]
[1732143484353,6.62618162,236.43,236.35,2.12]
[1732143484552,6.62618162,236.41,236.33,8.74618162]
[1732143484753,6.62618162,236.41,236.33,6.62618162]
[1732143484953,6.62618162,236.41,236.33,8.73998162]
[1732143485255,6.62618162,236.39,236.33,2.1138]
[1732143486955,2.1136,236.36,236.32,2.1139]
[1732143488055,2.1136,236.36,236.33,2.1138]
[1732143489154,2.1136,236.36,236.33,8.73998162]
[1732143490348,6.62618162,236.36,236.28,6.62618162]
[1732143490750,8.74618162,236.36,236.28,6.62618162]
[1732143491353,8.74618162,236.36,236.28,8.74038162]
[1732143492355,2.114,236.32,236.28,8.74038162]
[1732143493652,2.114,236.32,236.28,6.62618162]
[1732143493850,2.114,236.32,236.29,2.1141]
[1732143494157,2.114,236.32,236.28,6.62618162]
[1732143494354,2.114,236.32,236.26,6.62618162]
[1732143495249,2.114,236.32,236.28,2.1143]
[1732143496256,2.114,236.31,236.28,2.1143]
[1732143499966,2.114,236.31,236.28,8.74048162]
[1732143500167,2.1139,236.32,236.28,8.74048162]
[1732143500464,6.62618162,236.35,236.28,8.74048162]
[1732143500765,2.114,236.32,236.28,2.1143]
[1732143501459,6.62618162,236.35,236.28,2.1143]
[1732143501763,2.114,236.31,236.28,2.1143]
[1732143502760,6.62618162,236.3,236.12,30.44]
[1732143503065,2.1144,236.27,236.24,2.1146]
[1732143504160,6.62618162,236.28,236.2,2.12]
[1732143504463,6.62618162,236.26,236.18,2.12]
[1732143504660,6.62618162,236.26,236.19,2.1151]
[1732143504661,2.1148,236.22,236.19,2.1151]
[1732143505457,6.62618162,236.26,236.19,2.1151]
[1732143505662,2.1147,236.23,236.19,2.1151]
[1732143506064,2.1143,236.28,236.21,2.1148]
[1732143506261,6.62618162,236.29,236.2,6.62618162]
[1732143507767,2.1145,236.26,236.2,6.62618162]
[1732143508262,2.1145,236.26,236.22,2.1147]
[1732143508968,1.3117,236.31,236.2,6.62618162]
[1732143509166,8.74048162,236.29,236.2,6.62618162]
[1732143509466,8.74048162,236.29,236.22,6.62618162]
[1732143509467,6.62618162,236.29,236.22,6.62618162]
[1732143510462,6.62618162,236.29,236.22,8.74618162]
[1732143510669,3.337,236.35,236.22,8.74618162]
[1732143510869,6.62618162,236.31,236.22,8.74618162]
[1732143511169,6.62618162,236.31,236.26,2.1144]
[1732143511572,6.62618162,236.31,236.24,6.62618162]
[1732143511764,8.74008162,236.33,236.27,2.1143]
[1732143513667,1.217,236.35,236.28,6.62618162]
[1732143513965,6.62618162,236.36,236.28,6.62618162]
[1732143514166,6.62618162,236.36,236.32,2.1138]
[1732143514372,6.62618162,236.36,236.28,6.62618162]
[1732143514572,1.2023,236.41,236.31,2.1139]
[1732143514771,6.62618162,236.38,236.3,6.62618162]
[1732143515174,1.2023,236.41,236.3,6.62618162]
[1732143515370,6.62618162,236.4,236.32,6.62618162]
[1732143515571,6.62618162,236.4,236.32,8.74618162]
[1732143516070,6.62618162,236.4,236.38,2.1133]
[1732143518574,6.62618162,236.4,236.39,2.1133]
[1732143520875,1.2954,236.42,236.34,6.62618162]
[1732143521076,1.2954,236.42,236.38,2.1134]
[1732143521077,7.92158162,236.42,236.38,2.1134]
[1732143521682,1.2954,236.42,236.34,6.62618162]
[1732143521883,1.2954,236.42,236.4,2.1131]
[1732143523475,6.62618162,236.43,236.4,2.1131]
[1732143523679,4.2327,236.46,236.4,2.1131]
[1732143523882,4.2327,236.46,236.38,6.62618162]
[1732143523883,6.62618162,236.46,236.38,6.62618162]
[1732143525179,6.62618162,236.46,236.41,2.1131]
[1732143525593,6.62618162,236.46,236.42,2.113]
[1732143527280,8.73888162,236.46,236.42,2.113]
[1732143527489,1.2023,236.47,236.4,6.62618162]
[1732143528086,1.2023,236.47,236.43,2.1129]
[1732143529080,11.16128162,236.48,236.42,6.62618162]
[1732143529081,1.2233,236.48,236.42,6.62618162]
[1732143530282,1.2233,236.48,236.44,2.1128]
[1732143531084,2.1124,236.49,236.44,2.1128]
[1732143532083,0.20992,236.5,236.46,6.62618162]
[1732143532285,0.20992,236.5,236.44,2.12]
[1732143532286,0.20992,236.5,236.49,2.1124]
[1732143534888,0.20992,236.5,236.49,4.2324]
[1732143535488,2.1117,236.57,236.52,2.1121]
[1732143536294,7.82148162,236.58,236.52,2.1121]
[1732143536590,2.1118,236.56,236.52,2.1121]
[1732143536991,2.1118,236.56,236.5,6.62618162]
[1732143536992,2.1117,236.57,236.53,2.1121]
[1732143537490,7.82148162,236.58,236.5,6.62618162]
[1732143537691,7.82148162,236.58,236.54,2.112]
[1732143538192,1.1953,236.58,236.54,2.112]
[1732143539290,3.307,236.58,236.54,2.112]
[1732143539487,6.62618162,236.57,236.49,2.12]
[1732143539687,6.62618162,236.57,236.49,8.74618162]
[1732143540287,2.1118,236.56,236.49,8.74618162]
[1732143540681,6.62618162,236.57,236.49,8.74618162]
[1732143541089,8.73788162,236.57,236.49,8.74618162]
[1732143541290,6.62618162,236.57,236.49,8.74618162]
[1732143541793,3.3069,236.58,236.54,2.1119]
[1732143541992,3.3069,236.58,236.51,6.62618162]
[1732143542195,1.1953,236.58,236.51,6.62618162]
[1732143542893,3.3069,236.58,236.54,2.1119]
[1732143543089,3.3069,236.58,236.51,6.62618162]
[1732143543496,1.1953,236.58,236.56,2.1118]
[1732143545291,2.1115,236.59,236.56,2.1118]
[1732143545694,1.2711,236.6,236.56,2.1118]
[1732143546699,3.3825,236.6,236.56,2.1118]
[1732143547600,6.62618162,236.57,236.5,2.12]
[1732143547795,6.62618162,236.55,236.49,2.12]
[1732143547997,2.1121,236.52,236.49,2.1123]
[1732143548800,6.62618162,236.55,236.5,2.1123]
[1732143548801,2.1121,236.53,236.5,2.1123]
[1732143549097,6.62618162,236.53,236.34,4.2274]
[1732143549300,6.62618162,236.53,236.22,239.5742]
[1732143549301,6.62618162,236.51,236.43,6.62618162]
[1732143549499,1.314,236.5,236.43,6.62618162]
[1732143549705,2.1125,236.48,236.43,6.62618162]
[1732143549902,1.314,236.5,236.43,6.62618162]
[1732143550404,1.314,236.5,236.27,4.2288]
[1732143550405,2.1129,236.44,236.41,6.62618162]
[1732143550596,6.62618162,236.49,236.41,6.62618162]
[1732143550798,6.62618162,236.47,236.41,6.62618162]
[1732143551200,2.113,236.43,236.41,6.62618162]
[1732143553000,2.1129,236.44,236.41,6.62618162]
[1732143553205,6.62618162,236.47,236.41,6.62618162]
[1732143553508,6.62618162,236.47,236.28,3.3807]
[1732143553509,2.113,236.42,236.28,3.3807]
[1732143553805,2.113,236.42,236.39,6.62618162]
[1732143554206,2.1132,236.41,236.37,2.1135]
[1732143554407,2.1132,236.41,236.38,6.62618162]
[1732143554702,2.1132,236.41,236.34,2.12]
[1732143554703,1.314,236.5,236.41,2.1131]
[1732143554910,6.62618162,236.48,236.42,6.62618162]
[1732143555100,7.94018162,236.5,236.42,6.62618162]
[1732143555298,1.314,236.5,236.42,6.62618162]
[1732143555701,1.314,236.5,236.44,6.62618162]
[1732143556105,1.314,236.5,236.45,2.1127]
[1732143556305,1.314,236.5,236.46,6.62618162]
[1732143558108,1.314,236.5,236.46,8.73888162]
[1732143558807,1.314,236.5,236.46,6.62618162]
[1732143559006,1.314,236.5,236.47,2.1126]
[1732143564509,1.314,236.5,236.44,6.62618162]
[1732143565305,1.314,236.5,236.47,2.1125]
[1732143566410,3.4264,236.5,236.45,2.1127]
[1732143566810,3.4264,236.5,236.39,2.12]
[1732143566811,8.73858162,236.49,236.44,2.1128]
[1732143567213,6.62618162,236.49,236.4,6.62618162]
[1732143568208,6.62618162,236.49,236.42,2.113]
[1732143568413,6.62618162,236.45,236.37,0.15623]
[1732143568607,6.62618162,236.45,236.37,6.78241162]
[1732143568809,6.62618162,236.45,236.37,0.15623]
[1732143569018,6.62618162,236.45,236.37,6.78241162]
[1732143569317,8.73898162,236.45,236.4,2.1132]
[1732143574516,6.62618162,236.45,236.41,2.1131]
[1732143576926,6.62618162,236.45,236.38,6.62618162]
[1732143577125,6.62618162,236.45,236.42,2.113]
[1732143580028,6.62618162,236.45,236.43,2.1129]
[1732143583530,3.3556,236.46,236.38,6.62618162]
[1732143583731,1.2556,236.46,236.4,6.62618162]
[1732143584032,6.62618162,236.48,236.46,2.1126]
[1732143584727,2.1,236.49,236.46,2.1126]